Cogmind - Beta 14 @@@ ROGUE MODE // 2024.09.04 @ 19:38:42 Player: Helstads_dog Result: Self-destructed Performance ------------- Evolutions (3) 1500 Regions Visited (6) 1200 Robots Destroyed (143) 715 Value Destroyed (5604) 5604 Prototype IDs (12) 240 Alien Tech Used (0) 0 Bonus (2163) 2163 TOTAL SCORE: 11422 Bonus ------- High Alert Combat Kills 1500 Follower Combat Kills 876 Entered Garrisons 200 Used RIF Installer 500 Friendly Fire -913 Cogmind --------- Core Integrity 199/700 Matter 62/300 Energy 100/100 System Corruption 16% Temperature Warning (323) Movement Treading (160) Location -7/Factory Parts ------- > --- POWER (2) -------- (None) > --- PROPULSION (4) --- Light Treads Light Treads Aluminum Leg > --- UTILITY (4) ------ Improved Heat Sink Medium Reactive Plating System Restoration Module > --- WEAPON (3) ------- Enhanced Autogun Flak Gun Magnetic Acceleration Cannon > --- INVENTORY (5) ---- Light Nuclear Core Light Nuclear Core Authchip [R/Combat] Authchip [R/Combat] Peak State ------------ > --- POWER ------------ Reinforced Ion Engine Nuclear Core > --- PROPULSION ------- Improved Treads Improved Treads Medium Treads Improved Medium Treads > --- UTILITY ---------- Improved Cooling System Large Storage Unit Transmission Jammer Hacking Suite > --- WEAPON ----------- Heavy Laser Enhanced Autogun Magnetic Acceleration Cannon > --- INVENTORY -------- Medium Treads Hardened Medium Armor Plating Hardened Medium Armor Plating Hardened Medium Armor Plating Layered Medium Armor Plating Authchip [R/Combat] Authchip [R/Combat] Enhanced Autogun Enhanced Autogun Gauss Rifle Gauss Rifle Makeshift Shrapnel Gun Magnetic Acceleration Cannon Advanced Remote Datajack Great Axe [Rating: 49] Favorites ----------- Power Heavy Ion Engine Engine Heavy Ion Engine Power Core Nuclear Core Propulsion Light Treads Treads Light Treads Leg Aluminum Leg Utility Large Storage Unit Device Cooling System Storage Large Storage Unit Processor Signal Interpreter Hackware Hacking Suite Protection Hardened Light Armor Plating Weapon Enhanced Autogun Energy Gun Improved Medium Laser Energy Cannon Heavy Plasma Cannon Ballistic Gun Enhanced Autogun Ballistic Cannon Magnetic Acceleration Cannon Special Weapon Plasma Cutter Slashing Weapon Great Axe Special Melee Weapon Improved Datajack Build | -11 -10 -9 -9 -8 -8 -7 ------- Run | Yrd Mat Mat Min Mat Gar Fac Slots Evolved 6 | . . 2 . 2 . 2 Power 1 | . . . . . . 1 Propulsion 2 | . . 1 . 1 . . Utility 2 | . . 1 . . . 1 Weapon 1 | . . . . 1 . . Parts Attached 140 | . 18 42 5 19 17 39 Power 17 | . 3 8 . 1 1 4 Engine 14 | . 3 7 . 1 . 3 Core 3 | . . 1 . . 1 1 Reactor . | . . . . . . . Propulsion 39 | . 2 13 1 4 9 10 Treads 34 | . . 12 1 4 9 8 Leg 5 | . 2 1 . . . 2 Wheel . | . . . . . . . Hover . | . . . . . . . Flight . | . . . . . . . Utility 38 | . 7 10 2 3 3 13 Device 9 | . 2 . 1 1 1 4 Storage 2 | . 1 1 . . . . Processor 6 | . 2 2 . . . 2 Hackware 1 | . . . . . . 1 Protection 20 | . 2 7 1 2 2 6 Artifact . | . . . . . . . Weapon 46 | . 6 11 2 11 4 12 Energy Gun 9 | . 1 3 . 1 . 4 Energy Cannon 1 | . . . . . 1 . Ballistic Gun 29 | . 5 8 1 8 1 6 Ballistic Cannon 3 | . . . . . 2 1 Launcher . | . . . . . . . Special Weapon 1 | . . . 1 . . . Impact Weapon . | . . . . . . . Slashing Weapon 2 | . . . . 1 . 1 Piercing Weapon . | . . . . . . . Special Melee Weapon 1 | . . . . 1 . . Unidentified Prototypes 1 | . . 1 . . . . Parts Lost 32 | . 5 3 . . 1 23 Power 6 | . 1 . . . 1 4 Propulsion 10 | . 1 1 . . . 8 Utility 8 | . 1 1 . . . 6 Weapon 8 | . 2 1 . . . 5 Highest Loss Streak 14 | . 5 2 . . 1 14 To Critical Strikes . | . . . . . . . Average Slot Usage (%) 98 | . 99 99 100 99 100 91 Engine 9 | . 14 8 11 8 7 6 Core 1 | . . 2 . . 1 6 Treads 28 | . . 32 33 36 36 23 Leg 4 | . 28 . . . . 1 Device 5 | . 4 . . 7 9 10 Storage 9 | . 14 11 11 9 9 6 Processor 1 | . 5 3 . . . . Protection 11 | . 4 18 21 10 9 7 Energy Gun 7 | . 9 9 11 4 4 6 Energy Cannon 1 | . . . . . 4 1 Ballistic Gun 13 | . 18 12 9 22 12 6 Ballistic Cannon 1 | . . . . . 4 4 Peak Build Rating 49 | . 10 18 18 29 38 49 Average Rating 24 | . 8 16 17 27 32 41 On Entrance 17 | 6 6 9 17 17 28 38 Naked Turns . | . . . . . . . Heaviest Build 79 | 13 33 42 42 54 59 79 Greatest Support 104 | 20 20 60 60 80 86 104 Greatest Overweight (x) 24 | . 1 . . . . 24 Average Overweight (x) . | . . . . . . . Largest Inventory Capacity 15 | . 15 15 15 15 15 15 Average Capacity 14 | . 14 15 15 15 15 14 Most Carried 15 | . 15 15 15 15 15 15 Average Carried 13 | . 8 14 14 14 14 13 Final Capacity 15 | 8 15 15 15 15 15 5 Final Carried 15 | 6 15 14 15 15 15 4 Class Distribution -------------------- 41% | Mutant 30% | Scavenger-Tank 14% | Tank 7% | Scavenger-Mutant 5% | Scavenger-Gunner Dominant Class ---------------- Mutant | -10/Materials Mutant | -9/Materials Mutant | -9/Mines Tank | -8/Materials Scavenger-Tank | -8/Garrison Scavenger-Tank | -7/Factory Resources | -11 -10 -9 -9 -8 -8 -7 ----------- Run | Yrd Mat Mat Min Mat Gar Fac Matter Collected 4180 | 200 479 768 172 548 799 1214 Remotely . | . . . . . . . Salvage Created 5551 | . 808 1261 134 752 706 1890 Parts 303 | . 41 92 5 38 42 85 Haulers Intercepted 4 | . 2 1 . . . 1 Recyclers Shooed 2 | . . . . . . 2 Parts Field Recycled . | . . . . . . . Retrieved Matter . | . . . . . . . Parts Self-Destructed . | . . . . . . . Prevented . | . . . . . . . Kills | -11 -10 -9 -9 -8 -8 -7 ------- Run | Yrd Mat Mat Min Mat Gar Fac Combat Hostiles Destroyed 120 | . 18 27 4 16 16 39 Melee 4 | . . . . . . 4 Guns 106 | . 18 27 4 16 14 27 Cannons 10 | . . . . . 2 8 Classes Destroyed 14 | . 5 3 . 2 2 2 Worker 3 | . . 1 . 1 . 1 Hauler 4 | . 2 1 . . . 1 Recycler 2 | . 1 . . . . 1 Mechanic 1 | . . . . . . 1 Operator 2 | . . . . 1 . 1 Watcher 10 | . 3 5 . 2 . . Swarmer 19 | . 6 4 1 3 . 5 Grunt 65 | . 12 12 3 9 6 23 Brawler 3 | . . 1 . . . 2 Sentry 25 | . . 10 . 3 7 5 Specialist 1 | . . . . . . 1 Hunter 2 | . . . . 1 1 . Programmer 4 | . . . . . 1 3 Behemoth 1 | . . . . . 1 . Best Kill Streak 6 | . 4 6 3 5 3 4 Combat Bots Only 5 | . 3 5 3 5 3 4 Max Kills in Single Turn 2 | . 2 2 1 2 1 2 Gunslinging 1 | . . 1 . 1 . . Exploded . | . . . . . . . Melee 1 | . . . . . . 1 Uniques/NPCs Destroyed 1 | . . . . . . 1 HV-R5K (-7/Factory) Combat | -11 -10 -9 -9 -8 -8 -7 -------- Run | Yrd Mat Mat Min Mat Gar Fac Hostile Shots Fired 939 | . 125 118 30 82 70 514 Missed 285 | . 40 36 6 22 18 163 Damage Taken 9324 | . 973 1053 333 817 1401 4747 Core 1179 | . 172 113 55 78 260 501 Absorbed by Shields . | . . . . . . . Ignored by Resistances 239 | . . . . . . 239 Regen/Repaired (Parts) 96 | . . 31 . 65 . . Core Remaining (%) 56 | 100 31 . 58 . 38 . Volleys Fired 465 | . 73 80 25 42 105 140 Largest 3 | . 2 2 2 3 3 3 Hottest 212 | . 85 88 79 113 178 212 Shots Fired 1069 | . 141 159 46 122 250 351 Gun 912 | . 141 159 41 122 170 279 Cannon 152 | . . . . . 80 72 Launcher . | . . . . . . . Special 5 | . . . 5 . . . Kinetic 716 | . 122 104 21 88 151 230 Thermal 353 | . 19 55 25 34 99 121 Explosive . | . . . . . . . Electromagnetic . | . . . . . . . Robot Hit Streak 34 | . 15 21 9 16 34 14 Robot Miss Streak 8 | . 5 8 4 6 2 4 Penetration Max 1 | . . . . 1 . . Secondary Targets 19 | . 8 1 . 5 2 3 Max Gunslinging Chain 1 | . 1 1 . 1 1 1 Shots Hit Robots 682 | . 90 113 36 79 106 258 Core Hits 332 | . 40 59 9 40 38 146 Critical Kills 2 | . 1 . . . 1 . Critical Parts Destroyed 4 | . . 1 . 2 1 . Critical Strikes 32 | . 5 9 2 5 3 8 Burn 25 | . 4 8 2 3 1 7 Destroy 6 | . 1 1 . 2 2 . Sever 1 | . . . . . . 1 Melee Attacks 16 | . . . . . . 16 Impact . | . . . . . . . Slashing 16 | . . . . . . 16 Piercing . | . . . . . . . Sneak Attacks 2 | . . . . . . 2 Combat Hostiles . | . . . . . . . Follow-up Attacks . | . . . . . . . Damage Inflicted 13262 | . 1160 1828 624 1447 2060 6143 Guns 10921 | . 1160 1823 624 1447 1807 4060 Cannons 1555 | . . . . . 253 1302 Explosions 233 | . . . . . . 233 Melee 548 | . . . . . . 548 Ramming 5 | . . 5 . . . . Kinetic 8345 | . 944 1109 321 1046 1358 3567 Thermal 4364 | . 216 714 303 401 702 2028 Explosive . | . . . . . . . Electromagnetic . | . . . . . . . Impact . | . . . . . . . Slashing 548 | . . . . . . 548 Piercing . | . . . . . . . Highest Corruption 16 | . . 2 2 . 2 16 Average Corruption 2 | . . 2 2 . 2 5 Corruption Purged . | . . . . . . . Corruption Blocked . | . . . . . . . Effects 63 | . . 24 20 . 6 13 Message Errors 14 | . . 6 4 . 1 3 Matter Fused 11 | . . 3 4 . 1 3 Heat Flow Errors 12 | . . 5 6 . 1 . Energy Discharges 11 | . . 4 . . 2 5 Parts Rejected 2 | . . . . . . 2 Data Loss (minor) 3 | . . 2 1 . . . Data Loss (major) 4 | . . 2 2 . . . Misfires 4 | . . 2 1 . 1 . Alerts 2 | . . . 2 . . . Overload Shots . | . . . . . . . Overflow Damage 240 | . . . . . . 240 Projectiles 24 | . . . . . . 24 Explosions 132 | . . . . . . 132 Melee 84 | . . . . . . 84 Knockbacks 17 | . . . . . 1 16 Impact . | . . . . . . . Kinetic 15 | . . . . . 1 14 Secondary 2 | . . . . . . 2 Self-Inflicted Damage 156 | . . . . . . 156 Shots 2 | . . . . . . 2 Rammed 1 | . . 1 . . . . Targets Rammed 2 | . . 2 . . . . Kicked . | . . . . . . . Crushed 1 | . . 1 . . . . Highest Temperature 403 | . 252 373 285 279 168 403 Average Temperature 96 | . 57 109 114 84 47 124 Received Heat Transfer 3201 | . 465 411 156 396 309 1464 Effects 8 | . . 1 . . . 7 Shutdowns 2 | . . . . . . 2 Energy Bleed 1 | . . . . . . 1 Interference 3 | . . . . . . 3 Short Circuit 1 | . . 1 . . . . Damage (minor) 1 | . . . . . . 1 Siege Activations . | . . . . . . . Robots Corrupted . | . . . . . . . Combat Hostiles . | . . . . . . . Parts Fried . | . . . . . . . Impact Corruptions . | . . . . . . . Robots Melted . | . . . . . . . Combat Hostiles . | . . . . . . . Parts Melted 17 | . 4 2 2 1 1 7 Heat Transferred 9887 | . 777 2146 777 1073 1306 3808 Parts Sabotaged . | . . . . . . . Parts Stolen . | . . . . . . . Parts Stripped . | . . . . . . . Power Chain Reactions . | . . . . . . . Alert | -11 -10 -9 -9 -8 -8 -7 ------- Run | Yrd Mat Mat Min Mat Gar Fac Peak Influence 1805 | . 190 533 183 407 1805 1678 Initial 947 | . . 9 183 . . 947 Average 526 | . 61 249 80 139 951 1193 Maximum Alert Level 5 | . . 2 . 2 5 5 Low Security (%) 42 | . 100 35 100 62 7 . Level 1 14 | . . 45 . 36 5 . Level 2 7 | . . 18 . 1 12 5 Level 3 17 | . . . . . 45 38 Level 4 12 | . . . . . 19 41 Level 5 4 | . . . . . 8 13 High Security . | . . . . . . . Max Security . | . . . . . . . Squads Dispatched 28 | . 4 1 . 6 . 17 Investigation 4 | . 3 . . 1 . . Extermination 4 | . . . . . . 4 Reinforcement 7 | . 1 1 . 2 . 3 Assault 5 | . . . . . . 5 Garrison 8 | . . . . 3 . 5 Intercept . | . . . . . . . Searches Triggered . | . . . . . . . Construction Impeded . | . . . . . . . Haulers Reinforced . | . . . . . . . Active Scanning Responses . | . . . . . . . Cargo Convoy Interrupts . | . . . . . . . Stealth | -11 -10 -9 -9 -8 -8 -7 --------- Run | Yrd Mat Mat Min Mat Gar Fac Distress Signals 4 | . 1 . . 2 1 . Communications Jammed 18 | . . . . . . 18 Distress Signals 18 | . . . . . . 18 Times Spotted 198 | . 29 34 7 21 34 73 Peak Tracking Total 13 | . 4 5 3 6 5 13 Tactical Retreats 10 | . . 1 . . 3 6 Traps | -11 -10 -9 -9 -8 -8 -7 ------- Run | Yrd Mat Mat Min Mat Gar Fac Traps Triggered 5 | . 2 1 . . 1 1 Indirectly . | . . . . . . . Trap Hack Attempts . | . . . . . . . Triggered . | . . . . . . . Disarmed . | . . . . . . . Reprogrammed . | . . . . . . . Reused . | . . . . . . . Traps Extracted . | . . . . . . . Installed . | . . . . . . . Triggered . | . . . . . . . Machines | -11 -10 -9 -9 -8 -8 -7 ---------- Run | Yrd Mat Mat Min Mat Gar Fac Machines Disabled 29 | . . . . 1 1 27 Max in Single Turn 18 | . . . . 1 1 18 Garrison Relay 1 | . . . . . 1 . Machines Repaired . | . . . . . . . Machines Dismantled . | . . . . . . . Machines Sabotaged . | . . . . . . . Overloaded Fab Kills . | . . . . . . . Hacking | -11 -10 -9 -9 -8 -8 -7 --------- Run | Yrd Mat Mat Min Mat Gar Fac Machines Accessed 43 | . 8 17 . 11 4 3 Terminals 31 | . 6 11 . 8 4 2 Fabricators 1 | . . . . . . 1 Repair Stations 3 | . . 2 . 1 . . Recycling Units 5 | . 2 2 . 1 . . Scanalyzers 2 | . . 2 . . . . Garrison Access 1 | . . . . 1 . . Total Hacks 120 | . 26 50 . 28 7 9 Successful 62 | . 11 30 . 15 2 4 Failed 56 | . 15 19 . 12 5 5 Catastrophic 7 | . 1 3 . 2 1 . Database Lockouts 2 | . . 1 . 1 . . Manual 70 | . 13 32 . 20 1 4 Terminals 95 | . 24 35 . 23 7 6 Fabricators 3 | . . . . . . 3 Repair Stations 5 | . . 3 . 2 . . Recycling Units 12 | . 2 8 . 2 . . Scanalyzers 4 | . . 4 . . . . Garrison Access 1 | . . . . 1 . . Terminal Hacks 37 | . 8 17 . 8 2 2 Robot Analysis 9 | . 3 4 . 2 . . Prototype ID Bank 11 | . 2 7 . 2 . . Open Door 1 | . . . . . 1 . Terminal Index 3 | . . 1 . 2 . . Alert Level 3 | . . 1 . 1 . 1 Unreport Threat 2 | . . . . 1 . 1 Locate Traps 5 | . 3 2 . . . . Hauler Manifests 1 | . . 1 . . . . Registered Prototypes 1 | . . 1 . . . . Security Stations 1 | . . . . . 1 . Fabricator Hacks 1 | . . . . . . 1 Load Schematic 1 | . . . . . . 1 Repair Station Hacks 4 | . . 2 . 2 . . Scan Component 2 | . . 1 . 1 . . Repair 2 | . . 1 . 1 . . Recycling Unit Hacks 6 | . 2 3 . 1 . . Report Inventory 5 | . 2 2 . 1 . . Retrieve Components 1 | . . 1 . . . . Scanalyzer 3 | . . 3 . . . . Insert Component 1 | . . 1 . . . . Analyze 2 | . . 2 . . . . Garrison Access Hacks 1 | . . . . 1 . . Unlock Access 1 | . . . . 1 . . Unauthorized Hacks 10 | . 1 5 . 3 . 1 Terminals 8 | . 1 3 . 3 . 1 Botnet 8 | . 1 3 . 3 . 1 Fabricators . | . . . . . . . Repair Stations . | . . . . . . . Recycling Units 2 | . . 2 . . . . Mask 2 | . . 2 . . . . Scanalyzers . | . . . . . . . Garrison Access . | . . . . . . . Data Cores Recovered . | . . . . . . . Used . | . . . . . . . Hacking Detections 36 | . 6 15 . 9 3 3 Full Trace Events 1 | . 1 . . . . . Feedback Events . | . . . . . . . Feedback Blocked . | . . . . . . . Robot Schematics Acquired . | . . . . . . . Robots Built . | . . . . . . . Authchips . | . . . . . . . Time . | . . . . . . . Total Robot Build Rating . | . . . . . . . Part Schematics Acquired 1 | . . 1 . . . . Parts Built . | . . . . . . . Authchips . | . . . . . . . Time . | . . . . . . . Total Part Build Rating . | . . . . . . . Parts Repaired 2 | . . 1 . 1 . . Time 76 | . . 25 . 51 . . Parts Recycled . | . . . . . . . Recycled Matter . | . . . . . . . Retrieved Matter . | . . . . . . . Retrieved Components 3 | . . 3 . . . . Parts Scanalyzed 1 | . . 1 . . . . Part Schematics Acquired 1 | . . 1 . . . . Parts Damaged . | . . . . . . . Bothacking | -11 -10 -9 -9 -8 -8 -7 ------------ Run | Yrd Mat Mat Min Mat Gar Fac Used RIF Installer 1 | . . . . . 1 . Robots Hacked . | . . . . . . . Non-combat . | . . . . . . . Combat . | . . . . . . . Robot Hacks Applied . | . . . . . . . Relay Couplers Released 3 | . . . . . 3 . Machine Destruction 3 | . . . . . 3 . Fabnet Peak Effective % . | . . . . . . . Robots Rewired . | . . . . . . . Allies Hacked . | . . . . . . . Hacks Repelled . | . . . . . . . Allies | -11 -10 -9 -9 -8 -8 -7 -------- Run | Yrd Mat Mat Min Mat Gar Fac Total Allies 3 | . . . 2 . 1 . Largest Group 2 | . . . 2 2 1 1 Highest-Rated Group 149 | . . . 40 40 149 141 Highest-Rated Ally 149 | . . . 31 31 149 141 Total Orders . | . . . . . . . Ally Attacks 65 | . . . 11 6 41 7 Total Damage 3081 | . . . 212 84 2424 361 Kills 28 | . . . 4 1 21 2 Allies Corrupted . | . . . . . . . Allies Melted . | . . . . . . . Intel | -11 -10 -9 -9 -8 -8 -7 ------- Run | Yrd Mat Mat Min Mat Gar Fac Robot Analysis Total 8 | . 3 4 . 1 . . Derelict Logs Recovered 2 | . . . 2 . . . Drone Launches . | . . . . . . . Drone Recoveries . | . . . . . . . Exploration | -11 -10 -9 -9 -8 -8 -7 ------------- Run | Yrd Mat Mat Min Mat Gar Fac Turns Passed 12122 | . 1606 2308 1614 1499 2948 2147 Spaces Moved 5958 | 1 712 1103 895 764 1635 848 Core 11 | . . . . . . 11 Treads 5221 | . . 1103 895 764 1635 824 Legs 726 | 1 712 . . . . 13 Wheels . | . . . . . . . Hover . | . . . . . . . Flight . | . . . . . . . Fastest Speed 120 | 120 120 160 160 160 160 160 Average Speed 166 | 120 182 160 160 160 160 184 Slowest Speed 1250 | 120 190 160 160 160 160 1250 Overloaded Moves . | . . . . . . . Propulsion Burnouts . | . . . . . . . Robots Hopped . | . . . . . . . Cave-ins Triggered 2 | . . . . . 2 . Exploration Rate (%) 66 | 1 99 98 101 64 82 21 Regions Visited 6 Branch Regions 1 Pre-discovered Areas 1 | . . . 1 . . . Known Exits Taken 4 | . 1 1 1 1 . . Unknown Exits Taken 1 | 1 . . . . . . Scrap Searched 1 | . . . 1 . . . Spaces Dug 14 | . . . . . 14 . Terrain Destroyed 170 | . . . . 1 15 154 Melee . | . . . . . . . Projectile 30 | . . . . . 15 15 AOE 139 | . . . . . . 139 Terrain Rammed . | . . . . . . . Walls Destroyed . | . . . . . . . Machines Disabled . | . . . . . . . Actions | -11 -10 -9 -9 -8 -8 -7 --------- Run | Yrd Mat Mat Min Mat Gar Fac Total 7348 | . 881 1503 1026 960 1823 1155 Wait 592 | . 52 219 98 113 39 71 Move 5951 | . 711 1102 894 763 1633 848 Hop . | . . . . . . . Pick Up 81 | . 16 22 2 7 10 24 Fast Attach 25 | . 4 3 . 4 2 12 Attach 47 | . 7 9 . 2 7 22 Detach 8 | . 3 . . . 1 4 Swap 68 | . 7 30 5 13 8 5 Drop 92 | . 8 36 2 16 17 13 Fire 465 | . 73 80 25 42 105 140 Melee 16 | . . . . . . 16 Ram . | . . . . . . . Kick . | . . . . . . . Crush 2 | . . 2 . . . . Escape Stasis 1 | . . . . . 1 . Rewire . | . . . . . . . Trap . | . . . . . . . Miscellaneous . | . . . . . . . Route ------- -11/Scrapyard -10/Materials (discovered 5 exits: *Mat x3 / [*Min] / [*Sub]) -9/Materials (discovered 4 exits: *Mat x3 / *Min) -9/Mines (discovered 2 exits: *Mat x2) -8/Materials (discovered 3 exits: *Fac x2 / Gar) -8/Garrison (discovered 3 exits: *Fac x3) -7/Factory (discovered 2 exits: [*Fac] / Sto) History --------- Turn | Location | Event 1 | -11/Scrapyard | Discovered new exit (range 0) 1 | -11/Scrapyard | Entered Materials 311 | -10/Materials | Build established: Mutant 457 | -10/Materials | Discovered new exit (range 15) 502 | -10/Materials | Core integrity fell below 50% 573 | -10/Materials | Lost 5 parts (1p1n1u2w) 703 | -10/Materials | Discovered new exit (range 16) 954 | -10/Materials | Discovered new exit (range 9) 1021 | -10/Materials | Discovered new exit (range 8) 1182 | -10/Materials | Identified exit to Materials 1602 | -10/Materials | Discovered exit to Materials (range 4) 1607 | -10/Materials | Entered another Materials area 1607 | -9/Materials | Evolved 2 slots: Propulsion x1, Utility x1 2060 | -9/Materials | Discovered new exit (range 16) 2216 | -9/Materials | Identified exit to Materials 2756 | -9/Materials | Discovered new exit (range 11) 2780 | -9/Materials | Identified exit to Mines 3020 | -9/Materials | Discovered exit to Materials (range 16) 3354 | -9/Materials | Build established: Scavenger-Mutant 3425 | -9/Materials | Central database locked down 3570 | -9/Materials | Repaired Hvy. Ion Engine 3578 | -9/Materials | Discovered exit to Materials (range 5) 3897 | -9/Materials | Build established: Mutant 3915 | -9/Materials | Entered Mines 4100 | -9/Mines | A weapon hastily lodged in a ceiling crevice suddenly fell to the ground 4163 | -9/Mines | Learned location of Storage (-7) 4355 | -9/Mines | Discovered exit to Materials (range 8) 4603 | -9/Mines | Discovered exit to Materials (range 10) 5529 | -9/Mines | Entered Materials 5529 | -8/Materials | Accompanied by 2 allies 5529 | -8/Materials | Evolved 2 slots: Propulsion x1, Weapon x1 5534 | -8/Materials | Led the pair of lost Derelicts to an unsafe place 5681 | -8/Materials | Garrison activated, responded to threat 5874 | -8/Materials | Build established: Scavenger-Tank 5893 | -8/Materials | Identified exit to Garrison 5988 | -8/Materials | Repaired Hvy. Ion Engine 6087 | -8/Materials | Met 7R-MNS 6353 | -8/Materials | Discovered new exit (range 10) 6358 | -8/Materials | Build established: Tank 6672 | -8/Materials | Central database locked down 6701 | -8/Materials | Discovered new exit (range 16) 7028 | -8/Materials | Entered Garrison 7074 | -8/Garrison | Triggered checkpoint 7165 | -8/Garrison | Rescued HV-R5K 7226 | -8/Garrison | Triggered checkpoint 7256 | -8/Garrison | Triggered checkpoint 7282 | -8/Garrison | Triggered checkpoint 7350 | -8/Garrison | Discovered new exit (range 10) 7602 | -8/Garrison | Triggered checkpoint 7791 | -8/Garrison | Spotted B-75 Beast 7795 | -8/Garrison | Destroyed B-75 Beast 7908 | -8/Garrison | Discovered new exit (range 10) 7915 | -8/Garrison | Build established: Scavenger-Tank 7980 | -8/Garrison | Triggered checkpoint 8061 | -8/Garrison | Discovered new exit (range 10) 8094 | -8/Garrison | Triggered checkpoint 8626 | -8/Garrison | Learned Factory security intel 9221 | -8/Garrison | Garrison Relay disabled 9459 | -8/Garrison | Crushed by falling debris 9476 | -8/Garrison | Core integrity fell below 50% 9585 | -8/Garrison | Crushed by falling debris 9672 | -8/Garrison | Installed Relay Interface Framework 9976 | -8/Garrison | Entered Factory 9976 | -7/Factory | Accompanied by 1 ally (HV-R5K) 9976 | -7/Factory | Evolved 2 slots: Power x1, Utility x1 9977 | -7/Factory | Identified exit to Storage 10376 | -7/Factory | First assault squad dispatched 10493 | -7/Factory | Murdered HV-R5K 10751 | -7/Factory | Build established: Scavenger-Gunner 10795 | -7/Factory | Discovered new exit (range 8) 11570 | -7/Factory | Garrison activated, responded to threat 11637 | -7/Factory | Core integrity fell below 50% 11673 | -7/Factory | Lost 14 parts (2p5n3u4w) 12006 | -7/Factory | Garrison activated, responded to threat 12103 | -7/Factory | System corruption reached 10% 12123 | -7/Factory | Self-destructed Last Messages --------------- 12103_ K-01 Serf collects debris. 12105_ Lgt. Nuclear Core destroyed. 12105_ System corrupted by crushing effect (+3). 12107_ K-01 Serf collects debris. 12109_ B-48 Gladiator destroyed. 12111_ K-01 Serf collects debris. 12112_ L-41 Fighter knocked back. 12114_ System corrupted: Energy discharge (-113). 12114_ K-01 Serf collects debris. 12115_ L-41 Fighter knocked back. 12115_ K-01 Serf collects debris. 12116_ Power failure, Imp. Deuterium Engine shutdown. 12117_ Overheating: System interference. 12117_ Flak Gun temporarily disabled. 12117_ K-01 Serf collects debris. 12117_ L-41 Fighter knocked back. 12118_ Aluminum Leg destroyed. 12119_ K-01 Serf collects debris. 12120_ Imp. Deuterium Engine destroyed. 12120_ K-01 Serf collects debris. Map ----- +----------------------------------------------------+ | ???????# # #??# ??????????? | | ???????# # #??# ???????????? | | ???????# # #??# ???????????? | | ???????# # #??# ?????????????? | | ???????############## #### #???????????????? | | ??????????????????# ## #???????????????? | | ????????????####### % #???????????????? | | ???????? #???????????????? | | ??????? = =! #??????""" ?????? | | ???????? =% %%=% # #/ !????? | | ???????? ######### ! = # """"""#???????? | | ??????????????????# ###+################???? | | ??????????????????######### !% #???? | | ????????????????????????# # " #????? | | ????????????????????????# # ""#????? | | ????????????????????????# # ]] S"#????? | | ????????????????????????# # ]]] ""#????? | | ????????????????????????### ] """#????? | | ?????????????????????????## #????? | | ?????????????????###############+############????? | | ?????????????????? i ## #######?????????? | | ?????????????????? """"""" ##%#???????????????? | | ?????????????????# ] """""""kk## #???????????????? | | ?????????????????# %""g""" i ## #???????????????? | | ?????????????????# """[!!"g ## #???????????????? | | ?????????????????# %%|!!@[g*%;# #???????????????? | | ???????????" %+ % """l!"" /s #???????????????? | | ???????????? # ""%"""" g####???????????????? | | ?????????????????# """"""" #??????????????????? | | ?????????????????? """""""g #??????????????????? | | ?????????????????? g% #??????????????????? | | ?????????????????# u #??????????????????? | | ??????????????????###+##+######??????????????????? | | ??????????????????????? ????????????????????????? | | ???????????????????????? ????????????????????????? | | ?????????????????????????????????????????????????? | | ?????????????????????????????????????????????????? | | ?????????????????????????????????????????????????? | | ?????????????????????????????????????????????????? | | ?????????????????????????????????????????????????? | | ?????????????????????????????????????????????????? | | ?????????????????????????????????????????????????? | | ?????????????????????????????????????????????????? | | ?????????????????????????????????????????????????? | | ?????????????????????????????????????????????????? | | ?????????????????????????????????????????????????? | | ?????????????????????????????????????????????????? | | ?????????????????????????????????????????????????? | | ?????????????????????????????????????????????????? | | ?????????????????????????????????????????????????? | +----------------------------------------------------+ Best States ------------- Heat Dissipation 61 Energy Generation 25 Energy Capacity 455 Matter Stores 300 Matter Capacity 300 Sight Range 16 Terrain Scan Density 10 ECM Strength 1 Jamming Range 12 Armor Coverage 675 Resistance: KI 30 Resistance: TH 15 Evasion (%) 55 Targeting Accuracy 6 Recoil Reduction 4 Offensive Hacking 10 Authchip Count 2 Item Schematics ----------------- Signal Interpreter | -9/Materials | Scanalyzed Robot Schematics ------------------ None Fabricated ------------ Nothing Alien Tech Used ----------------- None Achievements -------------- None Challenges ------------ None Game ------ Seed SwordMediumBarrier Manual? 0 Play Time 02:54:05 Cumulative 44.2 hours Start 2024.09.04 @ 16:00:43 End 2024.09.04 @ 19:38:42 Sessions 1 Manual Loads 0 Difficulty Rogue Special Mode None Game No. 24 Rogue 24 Adventurer 0 Explorer 0 Win Type - Total 0 Types 0/0/0/0/0/0/0/0/0 Lore% 15 Gallery% 22 Achievement% 31 Wizard Run 0 Options --------- Layout 0 ASCII 0 Keyboard 0 Movement Mouse Keybinds 0 Fullscreen 1 Font 16/SmallcapsGlow Map View 37x27 Zoom Use 84% Tactical HUD 1 Map Filters NONE Filters NONE Steam 1 RUN: db5c8de7-d815-4983-9d1c-370ab46eb7cc